Workbook

Sheet TITLE1
R1: D09-BH-FY2022(A)
R5: PID No. | Y5: FEDERAL PROJECT No.
R6: 102848 | Y6: NON-FEDERAL
R8: STATE JOB No. | Y8: CONSTRUCTION PROJECT No.
R9: 499564
S11: PROJECT DESCRIPTION CONCRETE BRIDGE DECK SEALING AT VARIOUS BRIDGES IN BROWN AND ROSS COUNTIES ON US 62, 68, 35, AND S.R. 32.
S14: 2019 SPECIFICATIONS THE STANDARD SPECIFICATIONS OF THE STATE OF OHIO, DEPARTMENT OF TRANSPORTATION, INCLUDING SUPPLEMENTAL SPECIFICATIONS LISTED IN THE PLANS AND CHANGES LISTED IN THE PROPOSAL SHALL GOVERN THIS IMPROVEMENT.
B19: LATITUDE: N 39° 19' 29" | J19: LONGITUDE: W 82° 57' 47"
S20: LIMITED ACCESS THIS IMPROVEMENT IS ESPECIALLY DESIGNED FOR THROUGH TRAFFIC AND HAS BEEN DECLARED A LIMITED ACCESS HIGHWAY, OR FREEWAY, BY ACTION OF THE DIRECTOR IN ACCORDANCE WITH THE PROVISIONS OF SECTION 5511.02 OF THE OHIO REVISED CODE.
B21: EARTH DISTURBED AREA: | P21: N/A*
B22: PROJECT EARTH DISTURBED AREA: | P22: N/A*
B23: EST. CONTRACTOR EARTH DISTURBED AREA: | P23: N/A*
B24: NOTICE OF INTENT EARTH DISTURBED AREA: | P24: N/A*
B25: RAILROAD INVOLVEMENT: | P25: NONE
B26: *TYPE OF PROJECT: | L26: MAINTENANCE | S26: I HEREBY APPROVE THESE PLANS AND DECLARE THAT THE MAKING OF THIS IMPROVEMENT WILL NOT REQUIRE THE CLOSING OF THE HIGHWAY TO TRAFFIC AND THAT PROVISIONS FOR THE MAINTENANCE AND SAFETY OF TRAFFIC WILL BE AS SET FORTH IN THESE PLANS AND ESTIMATES.
B28: DESIGN DESIGNATION: | J28: (SEE SHEET 2)
B29: DESIGN EXCEPTION: | J29: NONE
R33: APPROVED:
V34: DISTRICT DEPUTY DIRECTOR
R36: DATE:
R38: APPROVED:
V39: DIRECTOR, DEPARTMENT OF TRANSPORTATION
R41: DATE:
B43: PLANS PREPARED BY:
B44: ODOT, DISTRICT 9 - P & E CHILLICOTHE, OH | K44: STANDARD CONSTRUCTION DRAWINGS | AC44: SUPPLEMENTAL SPECIFICATIONS
B46: ENGINEERS SEAL: | K46: MT-95.30 | N46: 2019-07-19 | AC46: 800 | AF46: 2021-04-16
K47: MT-97.10 | N47: 2019-04-19 | AC47: 821 | AF47: 2012-04-20
K48: MT-98.10 | N48: 2020-01-17 | AC48: 832 | AF48: 2018-10-19
K49: MT-98.11 | N49: 2020-01-17 | AC49: 921 | AF49: 2012-04-20
K50: MT-98.20 | N50: 2019-04-19
K51: MT-98.22 | N51: 2020-01-17 | AC51: SPECIAL PROVISIONS
K52: MT-98.28 | N52: 2020-01-17
K53: MT-101.90 | N53: 2020-07-17 | AC53: NONE
K54: MT-105.10 | N54: 2020-01-17
B55: SIGN:
B57: DATE: | D57: 4/26/2021

Sheet NOTES
A1: ITEM 512 - SEALING CONCRETE BRIDGE DECKS WITH HMWM RESIN, AS PER PLAN
A3: THIS ITEM SHALL CONSIST OF SEALING OPENED CRACKS AND CONSTRUCTION JOINTS ON THE BRIDGE DECK AND APPROACH SLABS WITH HMWM RESIN. PRIOR TO SEALING THE JOINTS AND CRACKS, THE ENGINEER SHALL MARK ALL AREAS TO BE SEALED. THE SEALING WIDTH SHALL BE A MINIMUM OF 1'-0" CENTERED ON THE OPENING.
A10: ITEM 512, SEALING OF CONCRETE BRIDGE DECKS WITH HMWM RESIN, AS PER PLAN SHALL BE ALLOWED TO CURE IN ACCORDANCE WITH CMS 512.04. THEN THE DECK SURFACE AND APPROACH SLABS MAY BE CLEANED AND TREATED WITH ITEM 512, SEALING CONCRETE BRIDGE DECKS WITH SRS (INCLUDING APPROACH SLABS) IN ACCORDANCE WITH CMS 512.05.
A17: PAYMENT FOR ALL LABOR, MATERIAL, AND EQUIPMENT REQUIRED TO PERFORM THE WORK OUTLINED ABOVE SHALL BE INCLUDED IN THE SQUARE YARD CONTRACT PRICE FOR ITEM 512, SEALING OF CONCRETE BRIDGE DECKS WITH HMWM RESIN, AS PER PLAN, UNLESS SEPERATELY ITEMIZED IN THE PLANS.
A23: DESIGN DESIGNATION SR 32 | B23: US 35 | C23: US 62 | D23: US 68
A24: CURRENT ADT (2021) 24000 | B24: 34000 | C24: 4700 | D24: 5100
A25: DESIGN YEAR ADT(2041) 29000 | B25: 37000 | C25: 5200 | D25: 7400
A26: DESIGN HOURLY VOLUME (2041) 3500 | B26: 3700 | C26: 450 | D26: 750
A27: DIRECTIONAL DISTRIBUTION 70% | B27: 0.5 | C27: 0.56 | D27: 0.56
A28: TRUCKS (24 HOUR B&C) 7% | B28: 0.28 | C28: 0.18 | D28: 0.1
A29: DESIGN SPEED 60 MPH | B29: 60 MPH | C29: 55 MPH | D29: 55 MPH
A30: LEGAL SPEED 60 MPH | B30: 60 MPH | C30: 55 MPH | D30: 55 MPH
A31: DESIGN FUNCTIONAL CLASSIFICATION
A32: 02 OTHER FREEWAYS OR EXPRESSWAYS (RURAL)
A33: NHS PROJECT YES
A36: SPECIAL CONSTRUCTION REQUIREMENT
A37: THE CONTRACTOR SHALL PERFORM THE WORK IN THE
A38: FOLLOWING SEQUENCE:
A39: 1. REMOVE ALL FOREIGN MATERIAL.
A40: 2. APPLY HMWM RESIN.
A41: 3. APPLY SRS.
A44: LANE VALUE CONTRACT TABLE
A45: DESCRIPTION OF CRITICAL LANE/RAMP TO BE MAINTAINED | B45: DISINCENTIVE $ PER MINUTE PER LANE
A47: 4 LANES OF US 35 FROM SLM 6.65 TO SLM 18.52 | B47: 50
A48: 4 LANES OF US 35 FROM SLM 18.65 TO SLM 19.50 | B48: 75
A49: ALL OTHER ROUTES ON PROJECT | B49: 50

Sheet NOTES (2)
A1: ITEM 614 - MAINTAINING TRAFFIC | D1: ITEM 614 - MAINTAINING TRAFFIC CONTINUED
A3: A MINIMUM OF ONE 10'-0" LANE OF TRAFFIC IN EACH DIRECTION ON S.R. 32, U.S. 35, U.S. 62 AND A MINIMUM OF ONE 10'-0" LANE OF TWO-WAY TRAFFIC ON U.S. 68 SHALL BE MAINTAINED AT ALL TIMES BY USE OF THE EXISTING PAVEMENT. A MINIUMUM OF ONE 10'-0" LANE OF TRAFFIC ON ALL RAMPS AND ACCELERATION & DECELERATION LANES SHALL BE MAINTAINED AT ALL TIMES BY THE USE OF THE EXISTING PAVEMENT. | D3: THE CONTRACTOR SHALL ARRANGE FOR ALL MAINTENANCE OF TRAFFIC OPERATIONS SUCH THAT THERE WILL BE NO OBSTRUCTIONS TO THE CONTINUOUS FLOW OF TRAFFIC. A MINIMUM OF ONE LANE OF TRAFFIC SHALL BE MAINTAINED ON ALL COUNTY AND TOWNSHIP ROADS AND ALL INTERSECTIONS (INCLUDING DRIVEWAYS) AND CROSS-OVERS SHALL BE OPEN TO TRAFFIC AT ALL TIMES.
D11: BEFORE THE WORK BEGINS, THE CONTRACTOR SHALL SUBMIT TO THE ENGINEER THE NAME(S) AND TELEPHONE NUMBER(S) OF A PERSON OR PERSONS WHO CAN BE CONTACTED TWENTY-FOUR (24) HOURS PER DAY BY THE OHIO DEPARTMENT OF TRANSPORTATION AND ALL INTERESTED POLICE AGENCIES. THIS PERSON OR PERSONS SHALL BE RESPONSIBLE FOR PLACING OR REPLACING NECESSARY TRAFFIC CONTROL DEVICES IN ACCORDANCE WITH THE OHIO MANUAL OF UNIFORM TRAFFIC CONTROL DEVICES.
A12: LANE CLOSURES WILL BE LIMITED TO THREE CONSECUTIVE CALENDAR DAYS.
A15: LENGTH AND DURATION OF LANE CLOSURES AND RESTRICTIONS SHALL BE AT THE APPROVAL OF THE ENGINEER. IT IS THE INTENT TO MINIMIZE THE IMPACT TO THE TRAVELING PUBLIC. LANE CLOSURES OR RESTRICTIONS OVER SEGMENTS OF THE PROJECT IN WHICH NO WORK IS ANTICIPATED WITHIN A REASONABLE TIME FRAME, AS DETERMINED BY THE ENGINEER, SHALL NOT BE PERMITTED. THE LEVEL OF UTILIZATION OF MAINTENANCE OF TRAFFIC DEVICES SHALL BE COMMENSURATE WITH THE WORK IN PROGRESS.
D21: ALL WORK AND TRAFFIC CONTROL DEVICES SHALL BE IN ACCORDANCE WITH CMS 614 AND OTHER APPLICABLE PORTIONS OF THE SPECIFICATIONS, AS WELL AS THE OHIO MANUAL OF UNIFORM TRAFFIC CONTROL DEVICES.
A25: ALL TRAFFIC CONTROL SIGNS, DEVICES, AND OPERATIONS USED FOR THE TEMPORARY MAINTENANCE AND CONTROL SHALL AT ALL TIMES BE SUBJECT TO THE DIRECTION AND CONTROL OF THE ENGINEER IN RESPECT TO THEIR CONDITIONS, LOCATIONS, AND TIMES OF APPLICATION. VISIBLE SIGNS AND DEVICES SHALL CONSISTENTLY REFLECT THE CONDITIONS ACTUALLY EXISTING. INAPPROPRIATE SIGNS OR DEVICES SHALL BE REMOVED OR COVERED.
D26: PAYMENT FOR ALL LABOR, EQUIPMENT AND MATERIALS SHALL BE INCLUDED IN THE LUMP SUM CONTRACT PRICE FOR ITEM 614 MAINTAINING TRAFFIC UNLESS SEPERATELY ITEMIZED IN THE PLANS.
D31: NOTIFICATION OF TRAFFIC RESTRICTIONS
D32: THROUGHOUT THE DURATION OF THE PROJECT, THE CONTRACTOR SHALL NOTIFY THE PROJECT ENGINEER IN WRITING OF ALL TRAFFIC RESTRICTIONS AND UPCOMING MAINTENANCE OF TRAFFIC CHANGES. THE CONTRACTOR SHALL ENSURE THE WRITTEN NOTIFACTION IS SUBMITTED IN A TIMELY MANNER TO ALLOW THE PROJECT ENINGEER TO MEET THE REQUIRED TIME FRAMES SET FORTH IN THE TABLE BELOW TO INFORM THE SPECIAL HAULINCG PERMITS SECTION AND THE DISTRICT PUBLIC INFOMRATION OFFICE (PIO). THIS NOTIFICATION SHALL BE RECIEVED BY THE PROJECT ENGINEER PRIOR TO THE PHUSICAL SETUP OF ANY APPLICABLE SIGNS OR MESSAGE BOARDS.
A34: NO WORK SHALL BE PERFORMED AND ALL EXISTING LANES SHALL BE OPEN TO TRAFFIC (EXCEPT FOR THE LANE CLOSURES FOR THE BRIDGE WORK ZONES) DURING THE FOLLOWING DESIGNATED HOLIDAYS OR EVENTS:
A39: CHRISTMAS | B39: LABOR DAY
A40: NEW YEARS | B40: THANKSGIVING
A41: MEMORIAL DAY | B41: SPECIAL LOCAL EVENTS
A42: FOURTH OF JULY | B42: (OTHER HOILDAY OR EVENT)
A44: THE PERIOD OF TIME THAT THE LANES ARE TO BE OPEN DEPENDS ON THE DAY OF THE WEEK ON WHICH THE HOLIDAY OR EVENT FALLS. THE FOLLOWING SCHEDULE SHALL BE USED TO DETERMINE THIS PERIOD: | D44: INFORMATION SHOULD INCLUDE, BUT IS NOT LIMITED TO, ALL CONSTRUCTION ACTIVITIES THAT IMPAC OR INTERFERE WITH TRAFFIC AND SHALL LIST THE SPECIFIC LCOATION, TYPE OF WORK, ROAD STATUS, DATE AND TIME OF RESTRICTION, DURATION OF RESTRICTION, NUMBER OF LANES MAINTAINED, NUMBER OF LANES CLOSED, MINIMUM VERTICAL CLEARANCE, MINIMUM WIDTH OF DRIVEABLE PAVEMENT, DETOUR ROUTES, IF APPLICABLE, AND ANY OTHER INFORMATION REQURESTED BY THE PROJECT ENGINEER.
A48: DAY OF HOLIDAY OR EVENT | B48: TIME ALL LANES MUST BE OPEN TO TRAFFIC
A50: SUNDAY | B50: 12:00N FRIDAY THROUGH
B51: 6:00AM MONDAY
A52: MONDAY | B52: 12:00N FRIDAY THROUGH
B53: 6:00AM MONDAY
A54: TUESDAY | B54: 12:00N MONDAY THROUGH | D54: NOTIFICATION TIME TABLE
B55: 6:00AM MONDAY | D55: ITEM | E55: DURATION OF CLOSURE | F55: NOTICE REQ'D.
A56: WEDNESDAY | B56: 12:00N TUESDAY THROUGH | D56: RAMP AND ROAD CLOSURE | E56: >= 2 WEEKS | F56: 21 CALENDARDAYS
B57: 6:00AM MONDAY | E57: >12 HOURS & < 2 WEEKS | F57: 14 CALENDAR DAYS
A58: THURSDAY | B58: 12:00N WEDNESDAY THROUGH | E58: <= 2 WEEKS | F58: 4 BUSINESS DAYS
B59: 6:00AM FRIDAY
A60: THURSDAY | B60: 6:00AM WEDNESDAY THROUGH | D60: LANE CLOSURES AND RSTRICTIONS | E60: >= 2 WEEKS | F60: 14 CALENDAR DAYS
A61: (THANKSGIVING | B61: 6:00AM MONDAY | E61: < 2 WEEKS | F61: 5 BUSINESS DAYS
A62: ONLY)
A63: FRIDAY | B63: 12:00N THURSDAY THROUGH | D63: START OF CONSTRUCTION | F63: 14 CALENDAR DAYS
B64: 6:00AM MONDAY
A65: SATURDAY | B65: 12:00N FRIDAY THROUGH
B66: 6:00AM MONDAY | D66: ANY UNFORSEEN CONDITIONS NOT SPECIFIED IN THE PLANS REQUIRING TRAFFIC RESTRICTIONS SHALL ALSO BE REPORTED TO THE PROJECT ENGINEER USING THE NOTIFICATION TIME TABLE.
A68: NO EXTENSIONS OF TIME SHALL BE GRANTED FOR DELAYS IN MATERIAL DELIVERIES, UNLESS SUCH DELAYS ARE INDUSTRY-WIDE, OR FOR LABOR STRIKES, UNLESS SUCH STRIKES ARE AREA-WIDE.
D71: EXISTING SHOULDERS
D72: TRAFFIC SHALL NOT BE REQUIRED TO TRAVEL ALONG THE EXISTING SHOULDERS THAT HAVE RUMBLE STRIPS.
A73: SHOULD THE CONTRACTOR FAIL TO MEET ANY OF THESE REQUIREMENTS, THE CONTRACTOR SHALL BE ASSESSED A DISINCENTIVE PER THE LANE VALUE CONTRACT (PN 127).

Sheet GEN SUM
A1: TO USE MACRO FOR PLACING ITEMS - CLICK THE BUTTON. IN THE DIALOG BOX, CLICK FILE THEN NAVIGATE TO I:\ODOTstd\V8istd\vba\data AND SELECT THE APPROPRIATE FILE (E = ENGLISH UNITS). CLICK 'OPEN'. THEN FROM THE DROP DOWN YOU CAN BEGIN SELECTING YOUR ITEMS. WARNING: BE SURE TO SELECT A CELL IN THE "ITEM" COLUMN PRIOR TO PLACING ANY ITEM FROM THE MACRO WINDOW. | | \/ | B1: The shape object InnerSheetBorder represents the drawing area of an 8.5"x11" ODOT General Summary sheet
B3: SHEET NUMBER | F3: PLAN SPLIT | I3: ITEM | J3: ITEM | K3: GRAND | L3: UNIT | M3: DESCRIPTION | N3: SEE SHEET NO
D5: 5 | E5: 6 | F5: 01/NFA/BR | J5: EXT | K5: TOTAL
M8: EROSION CONTROL
F10: 1000 | I10: 832 | J10: 30000 | K10: 1000 | L10: EACH | M10: EROSION CONTROL
M12: TRAFFIC CONTROL
D14: =STRUCTURES!P44 -> 1.23 | E14: 1.35 | F14: =D14+E14 -> 2.58 | I14: 642 | J14: 00104 | K14: =D14+E14 -> 2.58 | L14: MILE | M14: EDGE LINE, 6", TYPE 1
D15: =STRUCTURES!R44 -> 0.64 | E15: ='STRUCTURES 2'!R44 -> 0.71 | F15: =D15+E15 -> 1.35 | I15: 642 | J15: 00204 | K15: =D15+E15 -> 1.35 | L15: MILE | M15: LANE LINE, 6", TYPE 1
D16: =STRUCTURES!S44 -> 418 | E16: 0 | F16: 418 | I16: 642 | J16: 00404 | K16: 418 | L16: FT | M16: CHANNELIZING LINE, 12", TYPE 1
D17: =STRUCTURES!O44 -> 0.05 | E17: 0 | F17: =K17 -> 0.05 | I17: 642 | J17: 00300 | K17: =D17+E17 -> 0.05 | L17: MILE | M17: CENTERLINE, TYPE 1
E18: 0
M19: STRUCTURE REPAIR
D21: =STRUCTURES!H44 -> 526 | E21: ='STRUCTURES 2'!H44 -> 591 | F21: =K21 -> 1117 | I21: 512 | J21: 74000 | K21: =D21+E21 -> 1117 | L21: SY | M21: REMOVAL OF EXISTING COATINGS FROM CONCRETE SURFACES
D22: =STRUCTURES!J44 -> 1467 | E22: ='STRUCTURES 2'!J44 -> 1391 | F22: =K22 -> 2858 | I22: 512 | J22: 10301 | K22: =D22+E22 -> 2858 | L22: SY | M22: SEALING CONCRETE BRIDGE DECKS WITH HMWM RESIN, AS PER PLAN | N22: 2
D23: =STRUCTURES!I44 -> 14667 | E23: ='STRUCTURES 2'!I44 -> 13909 | F23: 28576 | I23: 512 | J23: 10400 | K23: 28576 | L23: SY | M23: TREATING OF CONCRETE BRIDGE DECKS WITH SRS (INCLUDING APPROACH SLABS)
M26: INCINDENTALS
A27: SHEET 1
F28: LUMP | I28: 614 | J28: 11000 | K28: LUMP | M28: MAINTAINING TRAFFIC
F29: LUMP | I29: 624 | J29: 10000 | K29: LUMP | M29: MOBILIZATION
A34: CLICK HERE FOR THE ITEM MASTER VIA INTRANET
B56: SHEET NUMBER | I56: ITEM | J56: ITEM | K56: GRAND | L56: UNIT | M56: DESCRIPTION | N56: SEE SHEET NO.
J58: EXT. | K58: TOTAL
K60: =SUM(B60:H60) -> 0
K61: 0
K62: 0
K63: 0
K64: 0
K65: 0
K66: 0
K67: 0
K68: 0
K69: 0
K70: 0
K71: 0
K72: 0
K73: 0
K74: 0
A75: SHEET 2 | K75: 0
K76: 0
K77: 0
K78: 0
K79: 0
K80: 0
K81: 0
A82: CLICK HERE FOR THE ITEM MASTER VIA INTRANET | K82: 0
K83: 0
K84: 0
K85: 0
K86: 0
K87: 0
K88: 0
K89: 0
K90: 0
K91: 0
K92: =SUM(B92:H92) -> 0
K93: 0
K94: 0
K95: 0
K96: 0
K97: 0
K98: 0
K99: 0
K100: 0
K101: 0
K102: 0
K103: 0
K104: 0
K105: 0
K106: 0
K107: 0
K108: 0

Sheet STRUCTURES
A1: BRIDGE NUMBER | B1: WIDTH (TOE/TOE OF PARAPETS) | C1: LENGTH (BRIDGE LIMITS) | D1: REAR APPROACH SLAB LENGTH | E1: FORWARD APPROACH SLAB LENGTH | F1: SPECIAL | H1: 512 | I1: 512 | J1: 512 | M1: 516 | O1: 642 | P1: 642 | R1: 642 | S1: 642 | W1: 512 | X1: STRUCTURAL FILE NUMBER
F2: PATCHING CONCRETE BRIDGE DECK OVERLAY WITH MICRO-SILICA MODIFIED CONCRETE | H2: REMOVAL OF EXISTING COATINGS FROM CONCRETTE SURFACES | I2: TREATING OF CONCRETE BRIDGE DECKS WITH SRS (INCLUDING APPROACH SLABS) | J2: SEALING CONCRETE BRIDGE DECKS WITH HMWM RESIN, AS PER PLAN (ESTIMATED AT 10% OF SRS AREA) | M2: PREFORMED ELASTOMERIC COMPRESSION JOINT SEAL | O2: CENTERLINE, TYPE 1 | P2: EDGE LINE, 6", TYPE 1 | R2: LANE LINE, 6", TYPE 1 | S2: CHANNELIZING LINE, 12", TYPE 1 | W2: REMOVAL OF EXISTING COATINGS FROM CONCRETTE SURFACES
P5: WHITE | Q5: YELLOW
B9: FT | C9: FT | D9: FT | E9: FT | F9: SQ YD | H9: SQ YD | I9: SQ YD | J9: SQ YD | M9: FT | O9: FT | P9: FT | Q9: FT | R9: FT | S9: FT | W9: SQ YD
A10: BRO-62-1311 L | B10: 37 | C10: 148.2 | D10: 25 | E10: 25 | H10: =+($C10+$D10+$E10)*0.75*0.222222222222222 -> 33.03333333 | I10: =((C10*B10)+((E10*B10)+(D10*B10)))/9 -> 814.8222222 | J10: =I10*0.1 -> 81.48222222 | M10: 55 | P10: =+C10+D10+E10 -> 198.2 | Q10: =+C10+D10+E10 -> 198.2 | R10: =+C10+D10+E10 -> 198.2 | W10: =+(C10+D10+E10)*0.75*0.222222222222222 -> 33.03333333 | X10: 0801356
A11: BRO-62-1312 R | B11: 37 | C11: 148.2 | D11: 25 | E11: 25 | H11: =+($C11+$D11+$E11)*0.75*0.222222222222222 -> 33.03333333 | I11: =((C11*B11)+((E11*B11)+(D11*B11)))/9 -> 814.8222222 | J11: =I11*0.1 -> 81.48222222 | M11: 54 | P11: =+C11+D11+E11 -> 198.2 | Q11: =+C11+D11+E11 -> 198.2 | R11: =+C11+D11+E11 -> 198.2 | W11: =+(C11+D11+E11)*0.75*0.222222222222222 -> 33.03333333 | X11: 0801380
A13: BRO-68-0160 | B13: 48 | C13: 190.97 | D13: 20 | E13: 20 | H13: 38.495 | I13: =((C13*B13)+((E13*B13)+(D13*B13)))/9 -> 1231.84 | J13: =I13*0.1 -> 123.184 | O13: =C13+D13+E13 -> 230.97 | P13: =(+C13+D13+E13)*2 -> 461.94 | W13: =+(C13+D13+E13)*0.75*0.222222222222222 -> 38.495 | X13: 0801313
M14: 84 | W14: =+(C14+D14+E14)*0.75*0.222222222222222 -> 0
A15: BRO-32-0504 L | B15: 58.08 | C15: 73.12 | D15: 25 | E15: 25 | H15: =+($C15+$D15+$E15)*0.75*0.222222222222222 -> 20.52 | I15: =((C15*B15)+((E15*B15)+(D15*B15)))/9 -> 794.5344 | J15: =I15*0.1 -> 79.45344 | P15: =+C15+D15+E15 -> 123.12 | Q15: =+C15+D15+E15 -> 123.12 | R15: =+C15+D15+E15 -> 123.12 | S15: =118+112 -> 230 | X15: 0800074
A16: BRO-32-0505 R | B16: 47 | C16: 73.12 | D16: 25 | E16: 25 | H16: 20.52 | I16: =((C16*B16)+((E16*B16)+(D16*B16)))/9 -> 642.96 | J16: =I16*0.1 -> 64.296 | P16: 123.12 | Q16: 123.12 | R16: =(+C16+D16+E16)*2 -> 246.24 | W16: =+(C16+D16+E16)*0.75*0.222222222222222 -> 20.52 | X16: 0800082
W17: =+(C17+D17+E17)*0.75*0.222222222222222 -> 0
A18: BRO-32-0540 R | B18: 59.5 | C18: 92.66 | D18: 25 | E18: 25 | H18: 23.77666667 | I18: =((C18*B18)+((E18*B18)+(D18*B18)))/9 -> 943.1411111 | J18: =I18*0.1 -> 94.31411111 | P18: 285.32 | Q18: 167.66 | R18: =+C18+D18+E18 -> 142.66 | S18: 117.66 | X18: 0800112
A19: BRO-32-0541 L | B19: 47 | C19: 92.66 | D19: 25 | E19: 25 | H19: 23.77666667 | I19: =((C19*B19)+((E19*B19)+(D19*B19)))/9 -> 745.0022222 | J19: =I19*0.1 -> 74.50022222 | M19: 40 | P19: 142.66 | Q19: 142.66 | R19: =(+C19+D19+E19)*2 -> 285.32 | W19: =+(C19+D19+E19)*0.75*0.222222222222222 -> 23.77666667 | X19: 0800104 | AB19: 675 | AC19: R | AD19: 7101546 | AE19: 80 | AF19: 40 | AG19: 3197 | AH19: 0 | AI19: 0 | AJ19: 30 | AK19: 4.5 | AL19: 1.5 | AM19: Y | AN19: 20 | AO19: OLD TOWN RUN
M20: 80 | W20: =+(C20+D20+E20)*0.75*0.222222222222222 -> 0 | AB20: 675 | AC20: L | AD20: 7101554 | AE20: 80 | AF20: 40 | AG20: 3197 | AH20: 0 | AI20: 0 | AJ20: 30 | AK20: 4.5 | AL20: 1.5 | AM20: Y | AN20: 20 | AO20: OLD TOWN RUN
A21: BRO-32-1140 R | B21: 37 | C21: 210.26 | D21: 25 | E21: 25 | H21: 43.37666667 | I21: =((C21*B21)+((E21*B21)+(D21*B21)))/9 -> 1069.957778 | J21: =I21*0.1 -> 106.9957778 | P21: 260.26 | Q21: 260.26 | R21: 260.26 | X21: 0800252 | AB21: 869 | AC21: R | AD21: 7101589 | AE21: 18 | AF21: 40 | AG21: 721 | AH21: 0 | AI21: 0 | AJ21: 4 | AK21: 4.5 | AL21: 1.5 | AM21: N | AN21: 0 | AO21: STREAM
A22: BRO-32-1141 L | B22: 37 | C22: 210.26 | D22: 25 | E22: 25 | H22: 43.37666667 | I22: =((C22*B22)+((E22*B22)+(D22*B22)))/9 -> 1069.957778 | J22: =I22*0.1 -> 106.9957778 | M22: 69 | P22: 260.26 | Q22: 260.26 | R22: 260.26 | W22: =+(C22+D22+E22)*0.75*0.222222222222222 -> 43.37666667 | X22: 0800236 | AB22: 869 | AC22: L | AD22: 7101600 | AE22: 18 | AF22: 40 | AG22: 721 | AH22: 0 | AI22: 0 | AJ22: 4 | AK22: 4.5 | AL22: 1.5 | AM22: N | AN22: 0 | AO22: STREAM
M23: 74 | W23: =+(C23+D23+E23)*0.75*0.222222222222222 -> 0 | AB23: 1472 | AC23: R | AD23: 7101724 | AE23: 167 | AF23: 42 | AG23: 7018 | AH23: 0 | AI23: 0 | AJ23: 30 | AK23: 3.5 | AL23: 1.5 | AM23: N | AN23: 0 | AO23: CO RD 550
A24: ROS-35-0674 L | B24: 37 | C24: 79.72 | D24: 25 | E24: 25 | H24: 21.62 | I24: =((C24*B24)+((E24*B24)+(D24*B24)))/9 -> 533.2933333 | J24: =I24*0.1 -> 53.32933333 | P24: 129.72 | Q24: 129.72 | R24: 129.72 | X24: 7101554 | AB24: 1472 | AC24: L | AD24: 7101732 | AE24: 167 | AF24: 51 | AG24: 8514 | AH24: 0 | AI24: 0 | AJ24: 30 | AK24: 3.5 | AL24: 1.5 | AM24: N | AN24: 0 | AO24: CO RD 550
A25: ROS-35-0675 R | B25: 37 | C25: 79.72 | D25: 25 | E25: 25 | H25: 21.62 | I25: =((C25*B25)+((E25*B25)+(D25*B25)))/9 -> 533.2933333 | J25: =I25*0.1 -> 53.32933333 | M25: 82 | P25: 129.72 | Q25: 129.72 | R25: 129.72 | W25: =+(C25+D25+E25)*0.75*0.222222222222222 -> 21.62 | X25: 7101546 | AB25: 1663 | AC25: L | AD25: 7101740 | AE25: 127 | AF25: 42 | AG25: 5339 | AH25: 0 | AI25: 0 | AJ25: 37 | AK25: 3.5 | AL25: 1.5 | AM25: N | AN25: 0 | AO25: CO RD 550
AB26: 1663 | AC26: R | AD26: 7101805 | AE26: 127 | AF26: 42 | AG26: 5339 | AH26: 0 | AI26: 0 | AJ26: 37 | AK26: 3.5 | AL26: 1.5 | AM26: N | AN26: 0 | AO26: CO RD 550
A27: ROS-35-0869 R | B27: 37 | C27: 18.5 | D27: 25 | E27: 25 | H27: 11.41666667 | I27: =((C27*B27)+((E27*B27)+(D27*B27)))/9 -> 281.6111111 | J27: =I27*0.1 -> 28.16111111 | M27: 100 | P27: =+C27+D27+E27 -> 68.5 | Q27: =+C27+D27+E27 -> 68.5 | R27: =+C27+D27+E27 -> 68.5 | W27: =+(C27+D27+E27)*0.75*0.222222222222222 -> 11.41666667 | X27: 7101589 | AB27: 1851 | AC27: L | AD27: 7101864 | AE27: 266 | AF27: 36.3 | AG27: 9645 | AH27: 0 | AI27: 0 | AJ27: 55 | AK27: 3.5 | AL27: 1.5 | AM27: N | AN27: 0 | AO27: SR 104
A28: ROS-35-0869 L | B28: 37 | C28: 18.5 | D28: 25 | E28: 25 | H28: 11.41666667 | I28: =((C28*B28)+((E28*B28)+(D28*B28)))/9 -> 281.6111111 | J28: =I28*0.1 -> 28.16111111 | M28: 100 | P28: =+C28+D28+E28 -> 68.5 | Q28: =+C28+D28+E28 -> 68.5 | R28: =+C28+D28+E28 -> 68.5 | W28: =+(C28+D28+E28)*0.75*0.222222222222222 -> 11.41666667 | X28: 7101600
AB29: 1919 | AC29: L | AD29: 7101988 | AE29: 1181 | AF29: 36 | AG29: 42518 | AH29: 0 | AI29: 0 | AJ29: 20 | AK29: 2.5 | AL29: 1.5 | AM29: N | AN29: 0 | AO29: SCIOTO RIVER
A30: ROS-35-1471 R | B30: 38.5 | C30: 166.8 | D30: 25 | E30: 25 | H30: 36.13333333 | I30: =((C30*B30)+((E30*B30)+(D30*B30)))/9 -> 927.4222222 | J30: 92.74222222 | M30: 96 | P30: =+C30+D30+E30 -> 216.8 | Q30: =+C30+D30+E30 -> 216.8 | R30: 216.8 | W30: =+(C30+D30+E30)*0.75*0.222222222222222 -> 36.13333333 | X30: 7101724 | AB30: 1919 | AC30: R | AD30: 7102011 | AE30: 1181 | AF30: 36 | AG30: 42518 | AH30: 0 | AI30: 0 | AJ30: 20 | AK30: 2.5 | AL30: 1.5 | AM30: N | AN30: 0 | AO30: SCIOTO RIVER
A31: ROS-35-1472 L | B31: 53.04 | C31: 166.8 | D31: 25 | E31: 25 | H31: 36.13333333 | I31: =((C31*B31)+((E31*B31)+(D31*B31)))/9 -> 1277.674667 | J31: =I31*0.1 -> 127.7674667 | M31: 96 | P31: =+C31+D31+E31 -> 216.8 | Q31: =+C31+D31+E31 -> 216.8 | R31: 363.6 | S31: 70 | W31: =+(C31+D31+E31)*0.75*0.222222222222222 -> 36.13333333 | X31: 7101732 | AB31: 1972 | AC31: L | AD31: 7102046 | AE31: 174 | AF31: 59 | AG31: 10269 | AH31: 0 | AI31: 0 | AJ31: 7 | AK31: 2.5 | AL31: 1.5 | AM31: N | AN31: 0 | AO31: SR 159 (BRIDGE ST)
AB32: 1972 | AC32: R | AD32: 7102070 | AE32: 174 | AF32: 42 | AG32: 7309 | AH32: 0 | AI32: 0 | AJ32: 7 | AK32: 2.5 | AL32: 1.5 | AM32: N | AN32: 0 | AO32: SR 159 (BRIDGE ST)
A33: ROS-35-1551 R | B33: 38.04 | C33: 92.5 | D33: 25 | E33: 25 | H33: 23.75 | I33: =((C33*B33)+((E33*B33)+(D33*B33)))/9 -> 602.3 | J33: =I33*0.1 -> 60.23 | M33: 68 | P33: =+C33+D33+E33 -> 142.5 | Q33: =+C33+D33+E33 -> 142.5 | R33: =+C33+D33+E33 -> 142.5 | W33: =+(C33+D33+E33)*0.75*0.222222222222222 -> 23.75 | X33: 7101686 | AB33: 2014 | AC33: L | AD33: 7102100 | AE33: 145 | AF33: 42 | AG33: 6092 | AH33: 0 | AI33: 0 | AJ33: 1 | AK33: 2.5 | AL33: 1.5 | AM33: Y | AN33: 25 | AO33: N&W RR
A34: ROS-35-1551 L | B34: 38.04 | C34: 92.5 | D34: 25 | E34: 25 | H34: 23.75 | I34: =((C34*B34)+((E34*B34)+(D34*B34)))/9 -> 602.3 | J34: =I34*0.1 -> 60.23 | P34: =+C34+D34+E34 -> 142.5 | Q34: =+C34+D34+E34 -> 142.5 | R34: =+C34+D34+E34 -> 142.5 | W34: =+(C34+D34+E34)*0.75*0.222222222222222 -> 23.75 | X34: 7101651 | AB34: 2014 | AC34: R | AD34: 7102135 | AE34: 145 | AF34: 42 | AG34: 6092 | AH34: 0 | AI34: 0 | AJ34: 1 | AK34: 2.5 | AL34: 1.5 | AM34: Y | AN34: 25 | AO34: N&W RR
AB35: 2042 | AC35: 0 | AD35: 7102194 | AE35: 233 | AF35: 37 | AG35: 8622 | AH35: 0 | AI35: 0 | AJ35: 59 | AK35: 2.5 | AL35: 1.5 | AM35: Y | AN35: 25 | AO35: S.B. US 23
A36: ROS-35-1659 R | B36: 37.67 | C36: 129.14 | D36: 25 | E36: 25 | H36: 29.85666667 | I36: =((C36*B36)+((E36*B36)+(D36*B36)))/9 -> 749.8004222 | J36: =I36*0.1 -> 74.98004222 | M36: 116 | P36: =+C36+D36+E36 -> 179.14 | Q36: =+C36+D36+E36 -> 179.14 | R36: =+C36+D36+E36 -> 179.14 | W36: =+(C36+D36+E36)*0.75*0.222222222222222 -> 29.85666667 | X36: 7101805 | AB36: 2419 | AC36: L | AD36: 7102259 | AE36: 1286 | AF36: 36 | AG36: 46296 | AH36: 0 | AI36: 0 | AJ36: 0 | AK36: 2 | AL36: 1.5 | AM36: Y | AN36: 25 | AO36: SCIOTO RIVER
A37: ROS-35-1660 L | B37: 37.67 | C37: 129.14 | D37: 25 | E37: 25 | H37: 29.85666667 | I37: =((C37*B37)+((E37*B37)+(D37*B37)))/9 -> 749.8004222 | J37: =I37*0.1 -> 74.98004222 | M37: 116 | P37: =+C37+D37+E37 -> 179.14 | Q37: =+C37+D37+E37 -> 179.14 | R37: =+C37+D37+E37 -> 179.14 | W37: =+(C37+D37+E37)*0.75*0.222222222222222 -> 29.85666667 | X37: 7101740
AB38: 2419 | AC38: R | AD38: 7102291 | AE38: 1280.3 | AF38: 39 | AG38: 49934 | AH38: 0 | AI38: 0 | AJ38: 10 | AK38: 1 | AL38: 1.5 | AM38: Y | AN38: 25 | AO38: SCIOTO RIVER
AB39: 2604 | AC39: R | AD39: 7102410 | AE39: 79.6 | AF39: 45 | AG39: 3584 | AH39: 0 | AI39: 0 | AJ39: 20 | AK39: 1 | AL39: 1.5 | AM39: Y | AN39: 25 | AO39: DRY RUN
A42: TOTAL | F42: =SUM(F14:F40) -> 0 | H42: =+SUM(H10:H41) -> 525.4616667 | I42: =+SUM(I10:I41) -> 14666.14436 | J42: =+SUM(J10:J41) -> 1466.614436 | M42: =+SUM(M10:M41) -> 1230 | O42: =SUM(O10:O37) -> 230.97 | P42: =+SUM(P10:Q40) -> 6473.2 | R42: =+SUM(R10:R41) -> 3334.38 | S42: =+SUM(S10:S41) -> 417.66 | W42: =SUM(W10:W41) -> 416.1683333 | AB42: 3343 | AC42: R | AD42: 7102623 | AE42: 150.7 | AF42: 45 | AG42: 6781 | AH42: 0 | AI42: 0 | AJ42: 9 | AK42: 1 | AL42: 1.5 | AM42: Y | AN42: 25 | AO42: JACKSON SHORT LINE R.R.
A43: CONVERT TO MILES | O43: =O42/5280 -> 0.04374431818 | P43: =+P42/5280 -> 1.225984848 | R43: =+R42/5280 -> 0.6315113636 | AB43: 3402 | AC43: 0 | AD43: 7102607 | AE43: 222 | AF43: 39 | AG43: 8654 | AH43: 0 | AI43: 0 | AJ43: 0 | AK43: 1 | AL43: 1.5 | AM43: Y | AN43: 25 | AO43: VIGO ROAD (CR 207)
A44: TOTALS CARRIED TO GENERAL SUMMARY | F44: =F42 -> 0 | H44: =+ROUNDUP(H42,0) -> 526 | I44: =+ROUNDUP(I42,0) -> 14667 | J44: =+ROUNDUP(J42,0) -> 1467 | M44: =+ROUNDUP(M42,0) -> 1230 | O44: =+ROUNDUP(O43,2) -> 0.05 | P44: =+ROUNDUP(P43,2) -> 1.23 | R44: =+ROUNDUP(R43,2) -> 0.64 | S44: =+ROUNDUP(S42,0) -> 418 | W44: =+ROUNDUP(W42,0) -> 417 | AB44: 3418 | AC44: L | AD44: 7102666 | AE44: 283 | AF44: 55.8 | AG44: 15780 | AH44: 0 | AI44: 0 | AJ44: 20 | AK44: 1 | AL44: 1.5 | AM44: Y | AN44: 25 | AO44: SALT CREEK

Sheet STRUCTURES 2
A1: BRIDGE NUMBER | B1: WIDTH (TOE/TOE OF PARAPETS) | C1: LENGTH (BRIDGE LIMITS) | D1: REAR APPROACH SLAB LENGTH | E1: FORWARD APPROACH SLAB LENGTH | F1: SPECIAL | H1: 512 | I1: 512 | J1: 512 | M1: 516 | P1: 642 | R1: 642 | W1: 512 | X1: STRUCTURAL FILE NUMBER
F2: PATCHING CONCRETE BRIDGE DECK OVERLAY WITH MICRO-SILICA MODIFIED CONCRETE | H2: REMOVAL OF EXISTING COATINGS FROM CONCRETTE SURFACES | I2: TREATING OF CONCRETE BRIDGE DECKS WITH SRS (INCLUDING APPROACH SLABS) | J2: SEALING CONCRETE BRIDGE DECKS WITH HMWM RESIN, AS PER PLAN (ESTIMATED AT 10% OF SRS AREA) | M2: PREFORMED ELASTOMERIC COMPRESSION JOINT SEAL | P2: EDGE LINE, 6", TYPE 1 | R2: LANE LINE, 6", TYPE 1 | W2: REMOVAL OF EXISTING COATINGS FROM CONCRETTE SURFACES
P5: WHITE | Q5: YELLOW
B9: FT | C9: FT | D9: FT | E9: FT | F9: SQ YD | H9: SQ YD | I9: SQ YD | J9: SQ YD | M9: FT | P9: FT | Q9: FT | R9: FT | W9: SQ YD
A10: ROS-35-1848 L | B10: 32.92 | C10: 269.84 | D10: 25 | E10: 25 | H10: =+($C10+$D10+$E10)*0.75*0.222222222222222 -> 53.30666667 | I10: =((C10*B10)+((E10*B10)+(D10*B10)))/9 -> 1169.903644 | J10: =I10*0.1 -> 116.9903644 | M10: 55 | P10: =+C10+D10+E10 -> 319.84 | Q10: =+C10+D10+E10 -> 319.84 | R10: =+C10+D10+E10 -> 319.84 | W10: =+(C10+D10+E10)*0.75*0.222222222222222 -> 53.30666667 | X10: 7101864
A11: ROS-35-1849 R | B11: 32.92 | C11: 269.84 | D11: 25 | E11: 25 | H11: =+($C11+$D11+$E11)*0.75*0.222222222222222 -> 53.30666667 | I11: =((C11*B11)+((E11*B11)+(D11*B11)))/9 -> 1169.903644 | J11: =I11*0.1 -> 116.9903644 | M11: 54 | P11: =+C11+D11+E11 -> 319.84 | Q11: =+C11+D11+E11 -> 319.84 | R11: =+C11+D11+E11 -> 319.84 | W11: =+(C11+D11+E11)*0.75*0.222222222222222 -> 53.30666667 | X11: 7101899
A13: ROS-35-1874 L | B13: 47.67 | C13: 169.9 | D13: 25 | E13: 25 | H13: 36.65 | I13: =((C13*B13)+((E13*B13)+(D13*B13)))/9 -> 1164.737 | J13: =I13*0.1 -> 116.4737 | P13: =+C13+D13+E13 -> 219.9 | Q13: =+C13+D13+E13 -> 219.9 | R13: =+C13+D13+E13 -> 219.9 | W13: =+(C13+D13+E13)*0.75*0.222222222222222 -> 36.65 | X13: 7101929
A14: ROS-35-1877 R | B14: 52.92 | C14: 169.9 | D14: 25 | E14: 25 | H14: 36.65 | I14: =((C14*B14)+((E14*B14)+(D14*B14)))/9 -> 1293.012 | J14: =I14*0.1 -> 129.3012 | M14: 84 | P14: =+C14+D14+E14 -> 219.9 | Q14: =+C14+D14+E14 -> 219.9 | R14: 414.8 | W14: =+(C14+D14+E14)*0.75*0.222222222222222 -> 36.65 | X14: 7101953
F15: 45
A16: ROS-35-1920 L | B16: 33.25 | C16: 1183 | D16: 25 | E16: 25 | H16: 205.5 | I16: =((C16*B16)+((E16*B16)+(D16*B16)))/9 -> 4555.25 | J16: =I16*0.1 -> 455.525 | P16: =+C16+D16+E16 -> 1233 | Q16: =+C16+D16+E16 -> 1233 | R16: =+C16+D16+E16 -> 1233 | W16: =+(C16+D16+E16)*0.75*0.222222222222222 -> 205.5 | X16: 7101988
A17: ROS-35-1921 R | B17: 33.25 | C17: 1183 | D17: 25 | E17: 25 | H17: 205.5 | I17: =((C17*B17)+((E17*B17)+(D17*B17)))/9 -> 4555.25 | J17: 455.525 | P17: =+C17+D17+E17 -> 1233 | Q17: =+C17+D17+E17 -> 1233 | R17: =+C17+D17+E17 -> 1233 | X17: 7102011
M19: 40 | W19: =+(C19+D19+E19)*0.75*0.222222222222222 -> 0 | AB19: 675 | AC19: R | AD19: 7101546 | AE19: 80 | AF19: 40 | AG19: 3197 | AH19: 0 | AI19: 0 | AJ19: 30 | AK19: 4.5 | AL19: 1.5 | AM19: Y | AN19: 20 | AO19: OLD TOWN RUN
M20: 80 | W20: =+(C20+D20+E20)*0.75*0.222222222222222 -> 0 | AB20: 675 | AC20: L | AD20: 7101554 | AE20: 80 | AF20: 40 | AG20: 3197 | AH20: 0 | AI20: 0 | AJ20: 30 | AK20: 4.5 | AL20: 1.5 | AM20: Y | AN20: 20 | AO20: OLD TOWN RUN
F21: 0 | AB21: 869 | AC21: R | AD21: 7101589 | AE21: 18 | AF21: 40 | AG21: 721 | AH21: 0 | AI21: 0 | AJ21: 4 | AK21: 4.5 | AL21: 1.5 | AM21: N | AN21: 0 | AO21: STREAM
M22: 69 | W22: =+(C22+D22+E22)*0.75*0.222222222222222 -> 0 | AB22: 869 | AC22: L | AD22: 7101600 | AE22: 18 | AF22: 40 | AG22: 721 | AH22: 0 | AI22: 0 | AJ22: 4 | AK22: 4.5 | AL22: 1.5 | AM22: N | AN22: 0 | AO22: STREAM
M23: 74 | W23: =+(C23+D23+E23)*0.75*0.222222222222222 -> 0 | AB23: 1472 | AC23: R | AD23: 7101724 | AE23: 167 | AF23: 42 | AG23: 7018 | AH23: 0 | AI23: 0 | AJ23: 30 | AK23: 3.5 | AL23: 1.5 | AM23: N | AN23: 0 | AO23: CO RD 550
AB24: 1472 | AC24: L | AD24: 7101732 | AE24: 167 | AF24: 51 | AG24: 8514 | AH24: 0 | AI24: 0 | AJ24: 30 | AK24: 3.5 | AL24: 1.5 | AM24: N | AN24: 0 | AO24: CO RD 550
M25: 82 | W25: =+(C25+D25+E25)*0.75*0.222222222222222 -> 0 | AB25: 1663 | AC25: L | AD25: 7101740 | AE25: 127 | AF25: 42 | AG25: 5339 | AH25: 0 | AI25: 0 | AJ25: 37 | AK25: 3.5 | AL25: 1.5 | AM25: N | AN25: 0 | AO25: CO RD 550
AB26: 1663 | AC26: R | AD26: 7101805 | AE26: 127 | AF26: 42 | AG26: 5339 | AH26: 0 | AI26: 0 | AJ26: 37 | AK26: 3.5 | AL26: 1.5 | AM26: N | AN26: 0 | AO26: CO RD 550
M27: 100 | W27: =+(C27+D27+E27)*0.75*0.222222222222222 -> 0 | AB27: 1851 | AC27: L | AD27: 7101864 | AE27: 266 | AF27: 36.3 | AG27: 9645 | AH27: 0 | AI27: 0 | AJ27: 55 | AK27: 3.5 | AL27: 1.5 | AM27: N | AN27: 0 | AO27: SR 104
M28: 100 | W28: =+(C28+D28+E28)*0.75*0.222222222222222 -> 0
AB29: 1919 | AC29: L | AD29: 7101988 | AE29: 1181 | AF29: 36 | AG29: 42518 | AH29: 0 | AI29: 0 | AJ29: 20 | AK29: 2.5 | AL29: 1.5 | AM29: N | AN29: 0 | AO29: SCIOTO RIVER
M30: 96 | W30: =+(C30+D30+E30)*0.75*0.222222222222222 -> 0 | AB30: 1919 | AC30: R | AD30: 7102011 | AE30: 1181 | AF30: 36 | AG30: 42518 | AH30: 0 | AI30: 0 | AJ30: 20 | AK30: 2.5 | AL30: 1.5 | AM30: N | AN30: 0 | AO30: SCIOTO RIVER
M31: 96 | W31: =+(C31+D31+E31)*0.75*0.222222222222222 -> 0 | AB31: 1972 | AC31: L | AD31: 7102046 | AE31: 174 | AF31: 59 | AG31: 10269 | AH31: 0 | AI31: 0 | AJ31: 7 | AK31: 2.5 | AL31: 1.5 | AM31: N | AN31: 0 | AO31: SR 159 (BRIDGE ST)
AB32: 1972 | AC32: R | AD32: 7102070 | AE32: 174 | AF32: 42 | AG32: 7309 | AH32: 0 | AI32: 0 | AJ32: 7 | AK32: 2.5 | AL32: 1.5 | AM32: N | AN32: 0 | AO32: SR 159 (BRIDGE ST)
M33: 68 | W33: =+(C33+D33+E33)*0.75*0.222222222222222 -> 0 | AB33: 2014 | AC33: L | AD33: 7102100 | AE33: 145 | AF33: 42 | AG33: 6092 | AH33: 0 | AI33: 0 | AJ33: 1 | AK33: 2.5 | AL33: 1.5 | AM33: Y | AN33: 25 | AO33: N&W RR
W34: =+(C34+D34+E34)*0.75*0.222222222222222 -> 0 | AB34: 2014 | AC34: R | AD34: 7102135 | AE34: 145 | AF34: 42 | AG34: 6092 | AH34: 0 | AI34: 0 | AJ34: 1 | AK34: 2.5 | AL34: 1.5 | AM34: Y | AN34: 25 | AO34: N&W RR
AB35: 2042 | AC35: 0 | AD35: 7102194 | AE35: 233 | AF35: 37 | AG35: 8622 | AH35: 0 | AI35: 0 | AJ35: 59 | AK35: 2.5 | AL35: 1.5 | AM35: Y | AN35: 25 | AO35: S.B. US 23
M36: 116 | W36: =+(C36+D36+E36)*0.75*0.222222222222222 -> 0 | AB36: 2419 | AC36: L | AD36: 7102259 | AE36: 1286 | AF36: 36 | AG36: 46296 | AH36: 0 | AI36: 0 | AJ36: 0 | AK36: 2 | AL36: 1.5 | AM36: Y | AN36: 25 | AO36: SCIOTO RIVER
M37: 116 | W37: =+(C37+D37+E37)*0.75*0.222222222222222 -> 0
AB38: 2419 | AC38: R | AD38: 7102291 | AE38: 1280.3 | AF38: 39 | AG38: 49934 | AH38: 0 | AI38: 0 | AJ38: 10 | AK38: 1 | AL38: 1.5 | AM38: Y | AN38: 25 | AO38: SCIOTO RIVER
AB39: 2604 | AC39: R | AD39: 7102410 | AE39: 79.6 | AF39: 45 | AG39: 3584 | AH39: 0 | AI39: 0 | AJ39: 20 | AK39: 1 | AL39: 1.5 | AM39: Y | AN39: 25 | AO39: DRY RUN
A42: TOTAL | F42: =SUM(F14:F40) -> 45 | H42: =+SUM(H10:H41) -> 590.9133333 | I42: =+SUM(I10:I41) -> 13908.05629 | J42: =+SUM(J10:J41) -> 1390.805629 | M42: =+SUM(M10:M41) -> 1230 | P42: =+SUM(P10:Q40) -> 7090.96 | R42: =+SUM(R10:R41) -> 3740.38 | W42: =SUM(W10:W41) -> 385.4133333 | AB42: 3343 | AC42: R | AD42: 7102623 | AE42: 150.7 | AF42: 45 | AG42: 6781 | AH42: 0 | AI42: 0 | AJ42: 9 | AK42: 1 | AL42: 1.5 | AM42: Y | AN42: 25 | AO42: JACKSON SHORT LINE R.R.
A43: CONVERT TO MILES | P43: =+P42/5280 -> 1.342984848 | R43: =+R42/5280 -> 0.708405303 | AB43: 3402 | AC43: 0 | AD43: 7102607 | AE43: 222 | AF43: 39 | AG43: 8654 | AH43: 0 | AI43: 0 | AJ43: 0 | AK43: 1 | AL43: 1.5 | AM43: Y | AN43: 25 | AO43: VIGO ROAD (CR 207)
A44: TOTALS CARRIED TO GENERAL SUMMARY | F44: =F42 -> 45 | H44: =+ROUNDUP(H42,0) -> 591 | I44: =+ROUNDUP(I42,0) -> 13909 | J44: =+ROUNDUP(J42,0) -> 1391 | M44: =+ROUNDUP(M42,0) -> 1230 | P44: =+ROUNDUP(P43,2) -> 1.35 | R44: =+ROUNDUP(R43,2) -> 0.71 | W44: =+ROUNDUP(W42,0) -> 386 | AB44: 3418 | AC44: L | AD44: 7102666 | AE44: 283 | AF44: 55.8 | AG44: 15780 | AH44: 0 | AI44: 0 | AJ44: 20 | AK44: 1 | AL44: 1.5 | AM44: Y | AN44: 25 | AO44: SALT CREEK
